bitfinex/quotes_BTCUSD_20260308
["timestamp","ask_amount","ask_price","bid_price","bid_amount"]
[1772932435810,0.07604766,67252.0,67240.0,0.07456049]
[1772932437043,0.07604766,67252.0,67241.0,0.00126213]
[1772932438042,0.07604766,67252.0,67242.0,0.12108797]
[1772932439747,0.07604766,67252.0,67242.0,0.0790021]
[1772932440038,0.05514742,67252.0,67242.0,0.0790021]
[1772932440255,0.03424718,67252.0,67242.0,0.0790021]
[1772932440419,0.03424718,67252.0,67242.0,0.07435828]
[1772932440819,0.03424718,67252.0,67243.0,0.00127996]
[1772932441628,0.00022001,67258.0,67243.0,0.00127996]
[1772932441811,0.00723,67268.0,67248.0,0.643026]
[1772932442016,0.00575,67268.0,67251.0,0.04374183]
[1772932442219,0.00575,67268.0,67255.0,0.04374183]
[1772932442417,0.07595782,67269.0,67258.0,0.0049334]
[1772932442664,0.00148037,67269.0,67258.0,0.0049334]
[1772932442868,0.07580969,67269.0,67258.0,0.0049334]
[1772932443069,0.07580969,67269.0,67259.0,0.0049334]
[1772932443834,0.07432969,67269.0,67259.0,0.0049334]
[1772932444048,0.07580969,67269.0,67254.0,0.000105]
[1772932444382,0.00022001,67259.0,67254.0,0.001585]
[1772932444787,0.00022001,67259.0,67254.0,0.000105]
[1772932444988,0.00022001,67259.0,67248.0,0.04802235]
[1772932444989,0.00489844,67259.0,67250.0,0.07434857]
[1772932445762,0.04502122,67259.0,67248.0,0.07447176]
[1772932446074,0.00467843,67258.0,67248.0,0.07447176]
[1772932446393,0.0743417,67257.0,67248.0,0.07447176]
[1772932449801,0.0743417,67257.0,67248.0,0.00012012]
[1772932450203,0.00517464,67258.0,67248.0,0.00012012]
[1772932450830,0.07951535,67258.0,67248.0,0.00012012]
[1772932451387,0.00022001,67257.0,67249.0,0.00506098]
[1772932451882,0.00022001,67257.0,67251.0,0.07434833]
[1772932452776,0.07455957,67259.0,67251.0,0.07434833]
[1772932454557,0.00517464,67258.0,67249.0,0.07435054]
[1772932456544,0.0743417,67257.0,67249.0,0.07435054]
[1772932457548,0.0743417,67257.0,67248.0,0.00012012]
[1772932458084,0.00517464,67256.0,67248.0,0.00012012]
[1772932459448,0.00517464,67256.0,67249.0,0.0002]
[1772932459681,0.07434391,67255.0,67249.0,0.0002]
[1772932461100,0.00517464,67254.0,67246.0,0.0002]
[1772932461276,0.0052282,67254.0,67246.0,0.0002]
[1772932461809,5.356e-05,67254.0,67246.0,0.07455386]
[1772932463648,5.356e-05,67254.0,67246.0,0.0002]
[1772932463860,0.07434723,67252.0,67246.0,0.0002]
[1772932467513,0.07434723,67253.0,67246.0,0.0002]
[1772932470167,0.07439904,67254.0,67246.0,0.0002]
[1772932470801,0.07951646,67257.0,67246.0,0.0002]
[1772932471177,0.08099646,67257.0,67247.0,0.07435275]
[1772932471591,0.08099646,67257.0,67246.0,0.07460714]
[1772932471766,0.00517464,67256.0,67246.0,0.07460714]
[1772932472143,0.00517464,67256.0,67246.0,0.07608714]
[1772932473151,0.07434391,67255.0,67246.0,0.07608714]
[1772932473784,0.07434391,67255.0,67246.0,0.08114812]
[1772932474379,0.053464,67255.0,67246.0,0.08114812]
[1772932476934,0.053464,67255.0,67246.0,0.07608714]
[1772932480405,0.05368401,67255.0,67246.0,0.07608714]
[1772932481406,0.05368401,67255.0,67246.0,0.07460714]
[1772932481611,0.05368401,67255.0,67246.0,0.07608714]
[1772932482045,0.00022001,67264.0,67248.0,0.00599075]
[1772932482269,0.00022001,67264.0,67250.0,0.04340348]
[1772932482577,0.00585718,67262.0,67251.0,0.00148]
[1772932485011,0.0450912,67266.0,67251.0,0.00148]
[1772932485012,0.00188,67275.0,67254.0,0.00599075]
[1772932485232,0.00188,67275.0,67258.0,0.00599075]
[1772932485434,0.07620187,67275.0,67260.0,0.00599075]
[1772932485663,0.07447354,67274.0,67261.0,0.00148]
[1772932485815,0.11786473,67274.0,67261.0,0.00148]
[1772932487035,0.11786473,67274.0,67262.0,0.00022001]
[1772932487242,0.00022001,67269.0,67262.0,0.00022001]
[1772932487442,0.11786473,67274.0,67262.0,0.00022001]
[1772932487645,0.11786473,67274.0,67261.0,0.08180803]
[1772932493171,0.000173,67278.0,67262.0,0.00599075]
[1772932493365,0.000173,67278.0,67264.0,0.00599075]
[1772932493570,0.00585718,67276.0,67263.0,0.07433507]
[1772932493769,0.04501218,67273.0,67263.0,0.07433507]
[1772932497468,0.00585718,67269.0,67252.0,0.07434709]
[1772932497670,0.04501218,67268.0,67253.0,0.00599075]
[1772932497874,0.04501218,67268.0,67253.0,0.00747075]
[1772932498073,0.04501218,67268.0,67254.0,0.00148]
[1772932498255,0.04501218,67268.0,67255.0,0.00599075]
[1772932498752,0.00585718,67269.0,67252.0,0.07434709]
[1772932498753,0.04523219,67274.0,67256.0,0.00747075]
[1772932499052,0.04501218,67273.0,67256.0,0.00747075]
[1772932499412,0.04501218,67271.0,67258.0,0.00599075]
[1772932500173,0.04501218,67271.0,67259.0,0.00747075]
[1772932500552,0.02418391,67271.0,67259.0,0.00747075]
[1772932501174,0.04339119,67271.0,67254.0,0.00599075]
[1772932501474,0.00148,67272.0,67258.0,0.04340348]
[1772932501639,0.00148,67272.0,67259.0,0.00599075]
[1772932502632,0.07431786,67279.0,67259.0,0.00599075]
[1772932502633,0.00148,67280.0,67261.0,0.00668715]
[1772932502807,0.00148,67283.0,67265.0,0.00668715]
[1772932503152,0.00148,67285.0,67270.0,0.04905075]
[1772932503345,0.00148,67286.0,67272.0,0.07432512]
[1772932503544,0.00148,67286.0,67273.0,0.00668715]
[1772932503723,0.0916622,67288.0,67273.0,0.00668715]
[1772932503724,0.01735468,67288.0,67273.0,0.00668715]
[1772932503926,0.09166241,67288.0,67273.0,0.00668715]
[1772932504296,0.09178254,67288.0,67273.0,0.00668715]
[1772932504496,0.09178254,67288.0,67273.0,0.00682165]
[1772932505343,0.01747481,67288.0,67273.0,0.00682165]
[1772932506389,0.09178251,67288.0,67275.0,0.00668715]
[1772932506928,0.01747481,67288.0,67275.0,0.00668715]
[1772932507124,0.00148,67290.0,67275.0,0.00668715]
[1772932507397,0.00148,67290.0,67276.0,0.00668715]
[1772932507613,0.00148,67290.0,67278.0,0.00668715]
[1772932508155,0.07578602,67290.0,67279.0,0.07431739]
[1772932508573,0.00148,67290.0,67279.0,0.07431739]
[1772932508932,0.00148,67290.0,67279.0,0.08137143]
[1772932511014,0.00148,67290.0,67277.0,0.07431884]
[1772932511015,0.04655838,67287.0,67277.0,0.07431884]
[1772932511180,0.07578574,67290.0,67277.0,0.07431884]
[1772932511181,0.00148,67290.0,67277.0,0.07431884]
[1772932511377,0.00148,67290.0,67278.0,0.00705404]
[1772932511817,0.07578528,67290.0,67278.0,0.00705404]
[1772932512553,0.00148,67290.0,67279.0,0.07431739]
[1772932512741,0.00148,67290.0,67280.0,0.00705404]
[1772932512937,0.00015,67291.0,67280.0,0.00705404]
[1772932513141,0.00015,67291.0,67277.0,0.12336959]
[1772932513142,0.00681701,67288.0,67276.0,0.07431849]
[1772932513436,0.04655838,67288.0,67276.0,0.07431849]
[1772932513813,0.00148,67288.0,67277.0,0.00705404]
[1772932514403,0.00148,67288.0,67278.0,0.07431849]
[1772932514799,0.00148,67288.0,67278.0,0.08137253]
[1772932515232,0.00148,67288.0,67278.0,0.07431849]
[1772932515414,0.00148,67288.0,67279.0,0.00705404]
[1772932515816,0.00148,67293.0,67281.0,0.00705404]
[1772932516153,0.12205341,67300.0,67281.0,0.00705404]
[1772932516353,0.00148,67296.0,67282.0,0.00705404]
[1772932516558,0.0012,67300.0,67284.0,0.00705404]
[1772932516759,0.00268,67300.0,67284.0,0.00705404]
[1772932518058,0.04655838,67294.0,67283.0,0.07579297]
[1772932518272,0.05337539,67294.0,67283.0,0.07579297]
[1772932518421,0.05337539,67294.0,67283.0,0.07431297]
[1772932518621,0.00681701,67292.0,67280.0,0.07431297]
[1772932518819,0.04655838,67289.0,67277.0,0.07579857]
[1772932519018,0.00681701,67286.0,67277.0,0.07579857]
[1772932519224,0.05337539,67286.0,67277.0,0.07431857]
[1772932519422,0.04655838,67286.0,67277.0,0.07431857]
[1772932519643,0.04655838,67284.0,67277.0,0.07431857]
[1772932520308,0.04655838,67292.0,67277.0,0.07431857]
[1772932520453,0.05337539,67290.0,67277.0,0.07431857]
[1772932520659,0.12086473,67289.0,67277.0,0.07431857]
[1772932521951,0.04655838,67289.0,67277.0,0.07431857]
[1772932522145,0.04655838,67289.0,67277.0,0.08137261]
[1772932522786,0.07430303,67292.0,67278.0,0.00705404]
[1772932523308,0.00148,67293.0,67278.0,0.00705404]
[1772932523699,0.07578217,67293.0,67278.0,0.00705404]
[1772932524057,0.04655838,67292.0,67278.0,0.00705404]
[1772932524254,0.04655838,67290.0,67278.0,0.00705404]
[1772932524413,0.00681701,67289.0,67277.0,0.07431868]
[1772932524612,0.07431187,67284.0,67277.0,0.07431868]
[1772932524832,0.07431187,67284.0,67277.0,0.07451868]
[1772932524833,0.04655838,67283.0,67277.0,0.07451868]
[1772932525034,0.02082173,67281.0,67268.0,0.08007906]
[1772932525261,0.00681701,67278.0,67268.0,0.07432906]
[1772932525529,0.00681701,67277.0,67268.0,0.07432906]
[1772932525732,0.00681701,67277.0,67270.0,0.0002]
[1772932526235,0.07430966,67287.0,67272.0,0.00705404]
[1772932526409,0.00148,67285.0,67273.0,0.00705404]
[1772932526611,0.00148,67285.0,67273.0,0.05610479]
[1772932526813,0.07431187,67284.0,67274.0,0.07432291]
[1772932526995,0.00148,67283.0,67274.0,0.07432291]
[1772932527744,0.00148,67283.0,67272.0,0.07444483]
[1772932527745,0.00681701,67282.0,67272.0,0.07444483]
[1772932530736,0.00681701,67282.0,67272.0,0.00012002]
[1772932530737,0.07431518,67281.0,67272.0,0.00012002]
[1772932530950,0.07431518,67281.0,67273.0,0.05610479]
[1772932531376,0.07431518,67281.0,67273.0,0.04905075]
[1772932531682,0.07431518,67281.0,67272.0,0.00012002]
[1772932532085,0.07431518,67281.0,67274.0,0.00015]
[1772932532284,0.08113219,67281.0,67274.0,0.00015]
[1772932532854,0.07431518,67281.0,67274.0,0.00015]
[1772932533054,0.00681701,67280.0,67274.0,0.00015]
[1772932533461,0.00681701,67278.0,67266.0,0.07446877]
[1772932533662,0.00681701,67276.0,67266.0,0.07446877]
[1772932534465,0.00148,67277.0,67266.0,0.07446877]
[1772932534673,0.00148,67277.0,67268.0,0.04986118]
[1772932534892,0.00148,67276.0,67269.0,0.07432844]
[1772932535092,0.00096,67276.0,67269.0,0.07432844]
[1772932536465,0.00148,67279.0,67269.0,0.07432844]
[1772932536667,0.00148,67279.0,67270.0,0.04986118]
[1772932537019,0.08113112,67282.0,67270.0,0.07432623]
[1772932537020,0.00148,67280.0,67270.0,0.07432623]
[1772932537165,0.00681701,67279.0,67269.0,0.00012004]
[1772932539644,0.00802239,67277.0,67269.0,0.00012004]
[1772932540009,0.00802239,67277.0,67266.0,0.0001373]
[1772932540206,0.00814243,67277.0,67266.0,0.0001373]
[1772932542012,0.00802239,67275.0,67266.0,0.0001373]
[1772932542225,0.00802239,67275.0,67265.0,0.0002]
[1772932542226,0.00802239,67273.0,67261.0,0.07453719]
[1772932542649,0.00802239,67273.0,67261.0,0.0002]
[1772932542825,0.00148,67274.0,67259.0,0.0003373]
[1772932543032,0.00802239,67272.0,67259.0,0.0003373]
[1772932543730,0.00802239,67272.0,67262.0,0.0002]
[1772932543954,0.07432623,67271.0,67262.0,0.0002]
[1772932545614,0.07431677,67280.0,67264.0,0.00781993]
[1772932545754,0.07431677,67280.0,67267.0,0.04280714]
[1772932546112,0.07431677,67280.0,67268.0,0.00781993]
[1772932546387,0.07431677,67280.0,67270.0,0.04280714]
[1772932546540,0.07431677,67280.0,67271.0,0.00781993]
[1772932548592,0.07431677,67280.0,67272.0,0.07432512]
[1772932550702,0.07431677,67280.0,67271.0,0.08214547]
[1772932550938,0.05347758,67280.0,67271.0,0.08214547]
[1772932551451,0.07579318,67283.0,67271.0,0.07432554]
[1772932551678,0.07431629,67282.0,67274.0,0.00781993]
[1772932553565,0.07430901,67287.0,67275.0,0.07432181]
[1772932554127,0.07430901,67287.0,67273.0,0.07432181]
[1772932554128,0.04156326,67284.0,67273.0,0.07432181]
[1772932554327,0.04156326,67282.0,67273.0,0.07432181]
[1772932554528,0.05106565,67282.0,67273.0,0.07432181]
[1772932555764,0.00802239,67280.0,67268.0,0.07580859]
[1772932556231,0.11587844,67281.0,67242.0,0.01050475]
[1772932556232,0.00802239,67278.0,67259.0,0.07471699]
[1772932556435,0.00148,67277.0,67261.0,0.00781993]
[1772932556637,0.00148,67277.0,67264.0,0.04280714]
[1772932556837,0.00148,67277.0,67265.0,0.00781993]
[1772932557167,0.00012004,67278.0,67265.0,0.00781993]
[1772932557168,0.00148,67276.0,67265.0,0.00781993]
[1772932557553,0.00148,67275.0,67265.0,0.00781993]
[1772932557754,0.07432291,67274.0,67266.0,0.07433175]
[1772932558170,0.07432291,67274.0,67271.0,0.0002]
[1772932562934,0.0001,67277.0,67271.0,0.00962217]
[1772932563141,0.03783308,67289.0,67273.0,0.00942217]
[1772932563142,0.07453229,67284.0,67273.0,0.00942217]
[1772932563337,0.07453229,67284.0,67271.0,0.0002]
[1772932563338,0.00148,67285.0,67278.0,0.00942217]
[1772932563547,0.00148,67285.0,67278.0,0.00954221]
[1772932563727,0.00148,67286.0,67278.0,0.00954221]
[1772932564094,0.0001,67287.0,67279.0,0.00942217]
[1772932564224,0.07440858,67287.0,67279.0,0.00942217]
[1772932564858,0.05354581,67287.0,67279.0,0.00942217]
[1772932566931,0.07452781,67288.0,67280.0,0.08373846]
[1772932567337,0.00022001,67287.0,67280.0,0.08373846]
[1772932567540,0.00022001,67287.0,67280.0,0.07431629]
[1772932567742,0.00022001,67287.0,67280.0,0.08373846]
[1772932568174,0.00022001,67288.0,67280.0,0.07431629]
[1772932568342,0.0001,67289.0,67281.0,0.00974588]
[1772932568549,0.00158,67289.0,67282.0,0.00974588]
[1772932568750,0.0001,67289.0,67282.0,0.00974588]
[1772932569511,0.0001,67289.0,67283.0,0.07431297]
[1772932572033,0.00158,67289.0,67283.0,0.07431297]
[1772932573199,0.0001,67289.0,67283.0,0.07431297]
[1772932573795,0.0002,67289.0,67283.0,0.07431297]
[1772932574000,0.0002,67289.0,67283.0,0.07441297]
[1772932574203,0.0002,67289.0,67283.0,0.07451297]
[1772932574846,0.00042001,67289.0,67283.0,0.07451297]
[1772932575144,0.00190001,67289.0,67283.0,0.07451297]
[1772932575824,0.00042001,67289.0,67283.0,0.07451297]
[1772932576031,0.00190001,67289.0,67283.0,0.07451297]
[1772932576836,0.0003333,67290.0,67283.0,0.07451297]
[1772932577050,0.07475422,67291.0,67283.0,0.07451297]
[1772932577250,0.00148,67290.0,67283.0,0.07451297]
[1772932577678,0.00148,67289.0,67283.0,0.07451297]
[1772932579149,0.00148,67290.0,67283.0,0.07451297]
[1772932581091,0.07475446,67291.0,67283.0,0.07451297]
[1772932581400,0.00148,67290.0,67283.0,0.07451297]
[1772932581562,0.07475446,67291.0,67283.0,0.07451297]
[1772932581760,0.00605,67295.0,67283.0,0.07451297]
[1772932581979,0.00753,67295.0,67283.0,0.07451297]
[1772932583549,0.00753,67295.0,67283.0,0.08425885]
[1772932584126,0.08182995,67295.0,67283.0,0.08425885]
[1772932584635,0.00753,67295.0,67283.0,0.08425885]
[1772932588625,0.00775001,67295.0,67283.0,0.08425885]
[1772932589783,0.07451886,67296.0,67283.0,0.08425885]
[1772932589988,0.00148,67295.0,67283.0,0.08425885]
[1772932590296,0.00148,67294.0,67283.0,0.08425885]
[1772932593511,0.00148,67294.0,67283.0,0.07451297]
[1772932593713,0.00148,67294.0,67284.0,0.00974588]
[1772932594335,0.00148,67294.0,67285.0,0.07431076]
[1772932594535,0.00148,67297.0,67287.0,0.03719208]
[1772932594737,0.00148,67298.0,67290.0,0.00974588]
[1772932594936,0.00148,67298.0,67291.0,0.03719208]
[1772932595106,0.00148,67298.0,67292.0,0.00974588]
[1772932595791,0.00148,67299.0,67292.0,0.00974588]
[1772932596005,0.0001555,67307.0,67294.0,0.00974588]
[1772932596155,0.00163,67308.0,67297.0,0.03719208]
[1772932596375,0.07428742,67307.0,67292.0,0.07430303]
[1772932596525,0.00955882,67306.0,67292.0,0.07430303]
[1772932596732,0.00955882,67306.0,67292.0,0.07578303]
[1772932597177,0.00022001,67299.0,67292.0,0.07578303]
[1772932597356,0.00955882,67306.0,67293.0,0.00974588]
[1772932597564,0.07428742,67307.0,67293.0,0.00974588]
[1772932597767,0.00022001,67306.0,67293.0,0.00974588]
[1772932598691,0.00022001,67306.0,67295.0,0.01004234]
[1772932600289,0.07450816,67306.0,67294.0,0.07430082]
[1772932600490,0.07450816,67306.0,67290.0,0.07440303]
[1772932601075,0.00925271,67304.0,67290.0,0.07440303]
[1772932602123,0.00925271,67303.0,67290.0,0.07440303]
[1772932602323,0.01073271,67302.0,67290.0,0.07440303]
[1772932603459,0.07429089,67303.0,67290.0,0.0001]
[1772932603664,0.00025093,67301.0,67290.0,0.0001]
[1772932603861,0.00148,67300.0,67290.0,0.0001]
[1772932605617,0.00022001,67306.0,67290.0,0.0001]
[1772932605872,0.00022001,67306.0,67294.0,0.03719208]
[1772932606031,0.00022001,67306.0,67297.0,0.01004234]
[1772932606836,0.00022001,67306.0,67298.0,0.01004234]
[1772932607111,0.00022001,67309.0,67298.0,0.01004234]
[1772932607319,0.00022001,67309.0,67294.0,0.00148]
[1772932607320,0.00022001,67309.0,67300.0,0.01004234]
[1772932607901,0.00022001,67309.0,67301.0,0.0742931]
[1772932608098,0.00170001,67309.0,67302.0,0.01004234]
[1772932608513,0.00148,67311.0,67302.0,0.01004234]
[1772932608712,0.00148,67311.0,67302.0,0.04723442]
[1772932608713,0.00012003,67311.0,67302.0,0.04723442]
[1772932608950,0.00012003,67311.0,67303.0,0.01004234]
[1772932610127,0.00012003,67311.0,67304.0,0.08433212]
[1772932612235,0.00012003,67311.0,67305.0,0.01004234]
[1772932614251,0.00034004,67311.0,67306.0,0.07428758]
[1772932614440,0.00034004,67311.0,67307.0,0.02116616]
[1772932614880,0.0001891,67313.0,67307.0,0.02116616]
[1772932615907,0.00148,67314.0,67307.0,0.02116616]
[1772932616320,0.00148,67314.0,67308.0,0.07428537]
[1772932619054,0.00148,67314.0,67308.0,0.07438537]
[1772932619214,0.00148,67314.0,67308.0,0.0001]
[1772932621042,0.0351378,67313.0,67295.0,0.00148]
[1772932621243,0.0351378,67311.0,67297.0,0.02116616]
[1772932621463,0.07428096,67312.0,67297.0,0.02116616]
[1772932621645,0.07428096,67312.0,67296.0,0.07577862]
[1772932621646,0.07428096,67312.0,67298.0,0.02136616]
[1772932623298,0.07428096,67312.0,67299.0,0.0742953]
[1772932624494,0.03274805,67311.0,67299.0,0.0742953]
[1772932625271,0.07428316,67310.0,67299.0,0.0742953]
[1772932627885,0.10703121,67310.0,67299.0,0.0742953]
[1772932629635,0.08617773,67310.0,67299.0,0.0742953]
[1772932633315,0.05342968,67310.0,67299.0,0.0742953]
[1772932635155,0.05342968,67310.0,67299.0,0.09546146]
[1772932640265,0.05342968,67310.0,67299.0,0.0742953]
[1772932643464,0.03255314,67310.0,67299.0,0.0742953]
[1772932646933,0.03255314,67310.0,67299.0,0.02116616]
[1772932651254,0.03255314,67310.0,67300.0,0.0742942]
[1772932655796,0.03255314,67310.0,67297.0,0.0001]
[1772932656097,0.02950943,67309.0,67296.0,0.07429845]
[1772932656260,0.00148,67308.0,67296.0,0.07429845]
[1772932656447,0.00148,67308.0,67299.0,0.0002]
[1772932658049,0.07428647,67307.0,67299.0,0.0002]
[1772932658191,0.07428647,67307.0,67299.0,0.02136616]
[1772932658388,0.00148,67306.0,67299.0,0.02136616]
[1772932658587,0.07428647,67307.0,67299.0,0.0002]
[1772932658792,0.00148,67305.0,67296.0,0.08364104]
[1772932659132,0.07428647,67307.0,67296.0,0.08364104]
[1772932659320,0.00148,67304.0,67296.0,0.08364104]
[1772932659520,0.00148,67304.0,67296.0,0.0836407]
[1772932660139,0.07577026,67304.0,67296.0,0.0836407]
[1772932665282,0.07587726,67304.0,67296.0,0.0836407]
[1772932666296,0.07587726,67304.0,67296.0,0.0838407]
[1772932671182,0.07587726,67304.0,67296.0,0.0839407]
[1772932675074,0.07609727,67304.0,67296.0,0.0839407]
[1772932678992,0.07609727,67304.0,67296.0,0.0840407]
[1772932679170,0.07609727,67304.0,67297.0,0.03954055]
[1772932680539,0.07609727,67304.0,67295.0,0.00050052]
[1772932680744,0.02950943,67302.0,67289.0,0.0002]
[1772932680968,0.07429641,67298.0,67276.0,1e-08]
[1772932681164,0.07429641,67298.0,67275.0,1e-08]
[1772932681165,0.02950943,67289.0,67275.0,1e-08]
[1772932681391,0.02950943,67287.0,67274.0,0.07432269]
[1772932681744,0.02950943,67287.0,67275.0,0.0001]
[1772932682434,0.00148,67288.0,67276.0,0.03961454]
[1772932683207,0.07430855,67287.0,67278.0,0.03951454]
[1772932683608,0.00148,67286.0,67278.0,0.03951454]
[1772932684012,0.00148,67285.0,67278.0,0.03951454]
[1772932684533,0.00148,67284.0,67278.0,0.03951454]
[1772932685300,0.07430855,67289.0,67278.0,0.03951454]
[1772932685301,0.00148,67283.0,67279.0,0.07431739]
[1772932685726,0.00148,67283.0,67279.0,0.11391893]
[1772932688549,0.07430467,67291.0,67280.0,0.02544729]
[1772932688550,0.08364884,67290.0,67280.0,0.02544729]
[1772932688704,0.00148,67289.0,67280.0,0.02544729]
[1772932689321,0.08364898,67290.0,67281.0,0.09976247]
[1772932689541,0.0001226,67293.0,67282.0,0.02544729]
[1772932689718,0.07442542,67293.0,67283.0,0.02544729]
[1772932689920,0.07442542,67293.0,67284.0,0.02729973]
[1772932690120,0.07442542,67293.0,67284.0,0.02544729]
[1772932691971,0.07442542,67293.0,67283.0,0.07431243]
[1772932692177,0.07442542,67293.0,67284.0,0.07431125]
[1772932694387,0.05361663,67293.0,67281.0,0.07431518]
[1772932694742,0.05361663,67293.0,67284.0,0.0001]
[1772932695473,0.05361663,67293.0,67281.0,0.07431518]
[1772932696510,0.05361663,67293.0,67283.0,0.0001]
[1772932697018,0.05361663,67293.0,67284.0,0.0001]
[1772932697361,0.05361663,67293.0,67284.0,0.0002]
[1772932697987,0.05383664,67293.0,67284.0,0.0002]
[1772932698189,0.05383664,67293.0,67284.0,0.02564524]
[1772932698815,0.05383664,67293.0,67285.0,0.099756]
[1772932699169,0.05383664,67293.0,67285.0,0.07431076]
[1772932699366,0.05383664,67293.0,67286.0,0.02544524]
[1772932701671,0.05383664,67293.0,67286.0,0.09975426]
[1772932705285,0.00148,67292.0,67286.0,0.07430902]
[1772932705488,0.00148,67293.0,67289.0,0.02768277]
[1772932705690,0.00148,67294.0,67290.0,0.02544514]
[1772932705866,0.07429569,67299.0,67290.0,0.02544514]
[1772932706067,0.00148,67294.0,67290.0,0.02544514]
[1772932707168,0.07429826,67297.0,67290.0,0.02544514]
[1772932707521,0.00022001,67293.0,67290.0,0.02544514]
[1772932710188,0.00022001,67293.0,67290.0,0.07430482]
[1772932710389,0.00022001,67293.0,67291.0,0.0254439]
[1772932710593,0.07452212,67293.0,67287.0,0.07430754]
[1772932712293,0.00022001,67293.0,67287.0,0.07430754]
[1772932712630,0.00022001,67293.0,67287.0,0.02544392]
[1772932714273,0.07452216,67293.0,67287.0,0.02544392]
[1772932714549,0.00022001,67293.0,67288.0,0.07430745]
[1772932715758,0.02607196,67292.0,67270.0,0.02544391]
[1772932715929,0.02607196,67292.0,67264.0,0.0002]
[1772932715930,0.02607196,67279.0,67264.0,0.0002]
[1772932716131,0.02607196,67277.0,67264.0,0.0002]
[1772932716539,0.02607196,67275.0,67258.0,0.0002]
[1772932719212,0.07432291,67274.0,67258.0,0.07454059]
[1772932719417,0.02607196,67273.0,67258.0,0.07454059]
[1772932719617,0.02607196,67271.0,67258.0,0.07454059]
[1772932720431,0.02607196,67269.0,67255.0,0.0002]
[1772932720639,0.02607196,67269.0,67253.0,0.07454544]
[1772932720840,0.02607196,67269.0,67253.0,0.07466544]
[1772932721632,0.02607196,67267.0,67253.0,0.07466544]
[1772932721834,0.02755196,67266.0,67253.0,0.07466544]
[1772932723657,0.02607196,67264.0,67253.0,0.07466544]
[1772932724075,0.02607196,67264.0,67258.0,0.0002]
[1772932724455,0.02607196,67264.0,67251.0,0.0002]
[1772932724654,0.02607196,67264.0,67239.0,0.07436074]
[1772932724655,0.02607196,67264.0,67247.0,0.07435257]
[1772932724875,0.02607196,67264.0,67248.0,0.07435119]
[1772932725579,0.07433507,67263.0,67248.0,0.07435119]
[1772932725779,0.02607196,67262.0,67249.0,0.07435031]
[1772932727199,0.02607196,67262.0,67250.0,0.0755494]
[1772932727393,0.02607196,67262.0,67250.0,0.0012]
[1772932727625,0.07433728,67261.0,67250.0,0.0012]
[1772932727783,0.00148,67260.0,67250.0,0.0012]
[1772932730002,0.07433949,67259.0,67250.0,0.0012]
[1772932731084,0.07433949,67259.0,67250.0,0.0014]
[1772932731501,0.07433949,67259.0,67250.0,0.07574936]
[1772932733326,0.07581949,67260.0,67251.0,0.02551198]
[1772932734705,0.07581949,67260.0,67257.0,0.00015]
[1772932734904,0.07581949,67260.0,67257.0,0.02564452]
[1772932735108,0.07581949,67260.0,67257.0,0.00015]
[1772932736922,0.00148,67259.0,67257.0,0.00015]
[1772932737306,0.07433256,67266.0,67257.0,0.00015]
[1772932737496,0.00148,67265.0,67257.0,0.00015]
[1772932737890,0.00148,67265.0,67257.0,0.00035]
[1772932739334,0.07433256,67266.0,67257.0,0.00035]
[1772932739537,0.00148,67264.0,67257.0,0.00035]
[1772932739958,0.00148,67263.0,67257.0,0.00035]
[1772932740359,0.07433256,67266.0,67257.0,0.00035]
[1772932740560,0.00148,67262.0,67257.0,0.00035]
[1772932740942,0.00148,67261.0,67257.0,0.00035]
[1772932741326,0.07433256,67266.0,67257.0,0.00035]
[1772932741528,0.00148,67260.0,67257.0,0.00035]
[1772932741825,0.07433256,67266.0,67257.0,0.00035]
[1772932742050,0.00148,67265.0,67257.0,0.00035]
[1772932742450,0.00148,67264.0,67257.0,0.00035]
[1772932742978,0.00148,67263.0,67257.0,0.00035]
[1772932743381,0.09669766,67269.0,67257.0,0.00035]
[1772932743580,0.00148,67268.0,67257.0,0.00035]
[1772932743782,0.02384922,67268.0,67257.0,0.00035]
[1772932743984,0.02384922,67267.0,67252.0,0.02767744]
[1772932744365,0.00022001,67264.0,67252.0,0.02767744]
[1772932744571,0.00022001,67264.0,67251.0,0.0001]
[1772932744768,0.02258923,67264.0,67251.0,0.0001]
[1772932745560,0.07433507,67263.0,67251.0,0.0001]
[1772932747897,0.07433507,67263.0,67252.0,0.02560171]
[1772932748686,0.00148,67262.0,67253.0,0.02560171]
[1772932750178,0.07433728,67261.0,67253.0,0.09994727]
[1772932757048,0.07433728,67261.0,67251.0,0.07444731]
[1772932757049,0.07433728,67261.0,67252.0,0.01412279]
[1772932757254,0.00022001,67264.0,67253.0,0.0234336]
[1772932757459,0.00022001,67264.0,67251.0,0.07444731]
[1772932757460,0.00148,67263.0,67251.0,0.07444731]
[1772932757795,0.02324522,67262.0,67247.0,0.07435197]
[1772932757974,0.02324522,67262.0,67247.0,0.07440553]
[1772932759981,0.07433728,67261.0,67247.0,0.09256511]
[1772932760460,0.07433728,67261.0,67247.0,0.01821314]
[1772932762467,0.02324522,67260.0,67247.0,0.09256503]
[1772932763215,0.02324522,67260.0,67247.0,0.01821314]
[1772932763794,0.02324522,67260.0,67247.0,0.09256575]
[1772932763997,0.02324522,67260.0,67247.0,0.07440615]
[1772932764192,0.00788036,67259.0,67247.0,5.356e-05]
[1772932764374,0.02324522,67258.0,67247.0,5.356e-05]
[1772932764580,0.00788036,67256.0,67247.0,5.356e-05]
[1772932766535,0.07434391,67255.0,67247.0,5.356e-05]
[1772932767096,0.00148,67254.0,67248.0,0.00734593]
[1772932767504,0.07434391,67256.0,67248.0,0.00734593]
[1772932767703,0.00148,67255.0,67248.0,0.00734593]
[1772932768801,0.07434502,67254.0,67248.0,0.08169671]
[1772932769539,0.07434502,67254.0,67248.0,0.00734593]
[1772932769946,0.07434502,67254.0,67248.0,0.08169726]
[1772932772633,0.07582435,67255.0,67248.0,0.08169726]
[1772932772869,0.00148,67257.0,67248.0,0.07435133]
[1772932773272,0.00148,67257.0,67252.0,0.00734593]
[1772932773469,0.07433738,67261.0,67252.0,0.00734593]
[1772932773692,0.00148,67260.0,67252.0,0.00734593]
[1772932773897,0.00022001,67262.0,67252.0,0.00734593]
[1772932774100,0.07581513,67263.0,67255.0,0.00734593]
[1772932774672,0.07433513,67263.0,67255.0,0.00734593]
[1772932775266,0.00148,67266.0,67255.0,0.00734593]
[1772932775464,0.00148,67266.0,67257.0,0.00734593]
[1772932776014,0.00148,67266.0,67252.0,0.07434717]
[1772932776015,0.00936036,67266.0,67252.0,0.07434717]
[1772932776214,0.07433286,67265.0,67252.0,0.07434717]
[1772932776513,0.07433286,67265.0,67257.0,0.0001]
[1772932777971,0.07433286,67265.0,67257.0,0.0002]
[1772932778373,0.07433286,67265.0,67257.0,0.0003]
[1772932779458,0.07489557,67265.0,67257.0,0.0003]
[1772932788243,0.07489557,67265.0,67256.0,0.0002]
[1772932788244,0.0080416,67264.0,67256.0,0.0002]